lending/lending_fUSD_20240807
["ID","MTS","AMOUNT","RATE_DAILY","PERIOD"]
[334391163,1723024233223,-1000.0,0.00011124,2]
[334391164,1723024233233,-407.8718,0.00011124,2]
[334391165,1723024233244,-35713.01941175,0.00011186,2]
[334391166,1723024233254,-48584.41948268,0.00011186,2]
[334391167,1723024233263,-43471.41576268,0.00011186,2]
[334391168,1723024233273,-3119.70333999,0.00011186,2]
[334391169,1723024233283,-8089.2466,0.00011224,2]
[334391170,1723024233292,-12827.65115706,0.00011224,2]
[334391171,1723024233306,-578.5596183,0.00011224,2]
[334391172,1723024233317,-678.69156372,0.00011224,2]
[334391173,1723024233337,-956.69375819,0.00011224,2]
[334391174,1723024233348,-700.0,0.00011224,2]
[334391175,1723024233663,-39.44999066,0.00011224,2]
[334391176,1723024233674,-2333.42785707,0.00011224,2]
[334391177,1723024233700,-642.3977412,0.00011224,2]
[334391186,1723024238347,-3433.1283138,0.00011224,2]
[334391187,1723024238357,-7000.0,0.00011324,2]
[334391188,1723024238367,-200.0,0.00011444,2]
[334391189,1723024238376,-155.314,0.00011479,2]
[334391190,1723024238387,-1000.0,0.00011496,2]
[334391191,1723024238396,-400.0,0.00011761,2]
[334391192,1723024238409,-459.93083446,0.00011879,2]
[334391193,1723024238419,-500.0,0.00011879,2]
[334391194,1723024238428,-293.12747687,0.00011879,2]
[334391195,1723024238445,-500.0,0.00011879,2]
[334391196,1723024238454,-500.0,0.00011879,2]
[334391197,1723024238464,-351.11217856,0.00011879,2]
[334391198,1723024238473,-500.0,0.00011879,2]
[334391199,1723024238483,-500.0,0.00011879,2]
[334391200,1723024238493,-201.87994025,0.00011879,2]
[334391201,1723024238502,-500.0,0.00011879,2]
[334391202,1723024238512,-500.0,0.00011879,2]
[334391203,1723024238522,-172.24133156,0.00011879,2]
[334391204,1723024238532,-500.0,0.00011879,2]
[334391205,1723024238541,-185.80459239,0.00011879,2]
[334391206,1723024238551,-500.0,0.00011879,2]
[334391207,1723024238560,-227.49333208,0.00011879,2]
[334391208,1723024238693,-272.50666792,0.00011879,2]
[334391209,1723024238703,-500.0,0.00011879,2]
[334391210,1723024238713,-500.0,0.00011879,2]
[334391211,1723024238723,-500.0,0.00011879,2]
[334391212,1723024238733,-500.0,0.00011879,2]
[334391213,1723024238743,-467.4,0.00011879,2]
[334391214,1723024238753,-500.99055912,0.00011879,2]
[334391215,1723024238762,-500.0,0.00011879,2]
[334391216,1723024238772,-501.60921365,0.00011879,2]
[334391217,1723024238782,-500.0,0.00011879,2]
[334391218,1723024238791,-500.49185136,0.00011879,2]
[334391219,1723024238801,-500.0,0.00011879,2]
[334391220,1723024238810,-408.70465492,0.00011879,2]
[334391221,1723024238820,-500.67705044,0.00011879,2]
[334391222,1723024238831,-500.10381329,0.00011879,2]
[334391223,1723024238841,-500.0,0.00011879,2]
[334391224,1723024238851,-500.0,0.00011879,2]
[334391225,1723024238860,-501.21469768,0.00011879,2]
[334391226,1723024238870,-500.29433917,0.00011879,2]
[334391227,1723024238880,-103409.62468326,0.0001188,2]
[334391228,1723024238890,-5401.5400912,0.00011896,2]
[334391229,1723024238900,-3402.9798974,0.00011896,2]
[334391230,1723024238910,-5401.5400912,0.00011896,2]
[334391231,1723024238920,-966.52238938,0.00011896,2]
[334391232,1723024238932,-1873.45794687,0.00011896,2]
[334391233,1723024238942,-1639.74205313,0.00011896,2]
[334391234,1723024238954,-1763.23784427,0.00011896,2]
[334391235,1723024238963,-2839.98033625,0.00011896,2]
[334391236,1723024238973,-3031.1823392,0.00011896,2]
[334391237,1723024238984,-2834.94827879,0.00011959,2]
[334391238,1723024238994,-3080.91987303,0.00011959,2]
[334391239,1723024239003,-1600.0,0.00012,2]
[334391240,1723024239013,-155.314,0.00012081,2]
[334391241,1723024239023,-319.02823931,0.0001226,2]
[334391242,1723024239032,-245.959,0.00012334,2]
[334391243,1723024239042,-555.0,0.00012334,2]
[334391244,1723024239052,-446.0,0.00012334,2]
[334391245,1723024239061,-1344.0,0.00012334,2]
[334391246,1723024239071,-150.0,0.00012334,2]
[334391247,1723024239081,-810.0,0.00012334,2]
[334391248,1723024239090,-449.721,0.00012334,2]
[334391249,1723024239100,-247.0,0.00012334,2]
[334391250,1723024239108,-1671.0,0.00012334,2]
[334391251,1723024239118,-171.05456296,0.0001236,2]
[334391252,1723024239127,-5000.0,0.0001236,2]
[334391253,1723024239137,-4001.62491358,0.0001236,2]
[334391254,1723024239147,-2340.89780687,0.0001236,2]
[334391255,1723024239156,-3978.09066242,0.0001236,2]
[334391256,1723024239165,-1405.50443999,0.00012391,2]
[334391257,1723024239174,-1738.76964944,0.00012391,2]
[334391258,1723024239185,-2209.93398544,0.00012391,2]
[334391259,1723024239195,-1846.66925336,0.00012397,2]
[334391260,1723024239204,-370.66,0.00012439,2]
[334391261,1723024239214,-3320.68457414,0.00012439,2]
[334391262,1723024239223,-69573.33834883,0.00012439,2]
[334391263,1723024240303,-1679.44999998,0.00012439,2]
[334391264,1723024240471,-12680.5478965,0.00012439,2]
[334391265,1723024241900,-56066.66375469,0.00012439,2]
[334391266,1723024241910,-5382.90886267,0.0001251,2]
[334391267,1723024241921,-168.05434707,0.00012537,2]
[334391268,1723024241931,-200.47165109,0.00012539,2]
[334391269,1723024241946,-500.0,0.00012539,2]
[334391270,1723024241956,-273.95375525,0.00012539,2]
[334391271,1723024241967,-500.0,0.00012539,2]
[334391272,1723024241977,-503.00578859,0.00012539,2]
[334391273,1723024241986,-500.0,0.00012539,2]
[334391274,1723024241996,-278.12,0.00012539,2]
[334391275,1723024242005,-513.78418123,0.00012539,2]
[334391276,1723024242014,-500.0,0.00012539,2]
[334391277,1723024242023,-504.61319593,0.00012539,2]
[334391278,1723024242033,-500.0,0.00012539,2]
[334391279,1723024242043,-508.92113542,0.00012539,2]
[334391280,1723024242052,-374.07657749,0.00012539,2]
[334391281,1723024242062,-191.64547351,0.00012539,2]
[334391282,1723024242071,-500.0,0.00012539,2]
[334391283,1723024242082,-500.78669759,0.00012539,2]
[334391284,1723024242091,-500.0,0.00012539,2]
[334391285,1723024242101,-500.0,0.00012539,2]
[334391286,1723024242111,-500.0,0.00012539,2]
[334391287,1723024242120,-500.82151404,0.00012539,2]
[334391288,1723024242129,-500.0,0.00012539,2]
[334391289,1723024242139,-302.30545265,0.00012539,2]
[334391290,1723024242148,-500.0,0.00012539,2]
[334391291,1723024242157,-500.0,0.00012539,2]
[334391292,1723024242166,-500.0,0.00012539,2]
[334391293,1723024242176,-500.0,0.00012539,2]
[334391294,1723024242185,-500.0,0.00012539,2]
[334391295,1723024242198,-500.0,0.00012539,2]
[334391296,1723024242207,-500.0,0.00012539,2]
[334391297,1723024242216,-179.35,0.00012539,2]
[334391298,1723024242226,-500.0,0.00012539,2]
[334391299,1723024242236,-500.0,0.00012539,2]
[334391300,1723024242245,-500.0,0.00012539,2]
[334391301,1723024242254,-500.0,0.00012539,2]
[334391302,1723024242264,-519490.51760878,0.0001254,2]
[334391303,1723024242276,-323.06490883,0.0001254,2]
[334391361,1723024243923,-406.07,0.0001254,2]
[334391362,1723024243935,-1789.29207492,0.0001254,2]
[334391363,1723024243949,-264.50396372,0.0001254,2]
[334391364,1723024243960,-421.401,0.0001254,2]
[334391365,1723024243971,-6400.0425959,0.0001254,2]
[334391368,1723024246587,-500.0,0.00010903,2]
[334391369,1723024246597,-2799.11777029,0.00011324,2]
[334391370,1723024246608,-583.52688101,0.00011324,2]
[334391371,1723024246619,-3617.3553487,0.00011324,2]
[334391372,1723024246629,-2834.94827879,0.00011896,2]
[334391373,1723024246638,-168121.77230197,0.0001254,2]
[334391374,1723024246648,-2145.03106891,0.0001254,2]
[334391375,1723024246657,-500.0,0.00012581,2]
[334391376,1723024246667,-1387.91901698,0.00012581,2]
[334391377,1723024246676,-1050.3006757,0.00012581,2]
[334391378,1723024246686,-719.68870544,0.00012581,2]
[334391379,1723024246699,-2258.07920666,0.00012581,2]
[334391380,1723024246708,-1050.3006757,0.00012581,2]
[334391381,1723024246717,-578.55400603,0.00012613,7]
[334391382,1723024246726,-509.2724774,0.00012613,2]
[334391383,1723024246735,-1000.0,0.00012646,2]
[334391384,1723024246745,-1002.04628758,0.00012665,2]
[334391385,1723024246754,-1074.23899927,0.00012665,2]
[334391386,1723024246764,-1275.10393157,0.00012665,2]
[334391387,1723024246773,-930.89531945,0.00012665,2]
[334391388,1723024246783,-629.77082549,0.00012665,2]
[334391389,1723024246793,-298.52611506,0.00012665,2]
[334391390,1723024246802,-1002.04628758,0.00012665,2]
[334391391,1723024246811,-1138.64679831,0.00012665,2]
[334391392,1723024246821,-2262.85941922,0.00012666,2]
[334391393,1723024246831,-2262.85941922,0.00012666,2]
[334391394,1723024246840,-1021.22974807,0.00012666,2]
[334391395,1723024246850,-1500.0,0.00012666,2]
[334391396,1723024246859,-155.25550244,0.00012666,2]
[334391397,1723024246870,-200.0,0.00012666,2]
[334391398,1723024246879,-180.23062663,0.00012666,2]
[334391399,1723024246889,-155.29448148,0.00012666,2]
[334391400,1723024246898,-155.0,0.00012666,2]
[334391401,1723024246907,-330.06238007,0.00012666,2]
[334391402,1723024246917,-308.8660107,0.00012666,2]
[334391403,1723024246926,-519.91345954,0.00012666,2]
[334391404,1723024246935,-947.04084705,0.00012666,2]
[334391405,1723024246947,-155.0,0.00012681,2]
[334391406,1723024246956,-686.73269963,0.00012681,2]
[334391407,1723024246966,-213.5448365,0.00012681,2]
[334391408,1723024246975,-155.0,0.00012681,2]
[334391409,1723024246985,-685.80874076,0.00012681,2]
[334391410,1723024246995,-155.11329335,0.00012681,2]
[334391411,1723024247004,-347.54171027,0.00012681,2]
[334391412,1723024247014,-155.0,0.00012681,2]
[334391413,1723024247023,-1152.60215161,0.00012681,2]
[334391414,1723024247032,-297.369235,0.00012681,2]
[334391415,1723024247041,-439.89968088,0.00012681,2]
[334391416,1723024247050,-400.0,0.00012681,2]
[334391417,1723024247059,-155.0,0.00012681,2]
[334391418,1723024247068,-155.0,0.00012681,2]
[334391419,1723024247077,-1014.81320553,0.00012681,2]
[334391420,1723024247087,-155.0,0.0001269,2]
[334391421,1723024247096,-404.83132537,0.0001269,2]
[334391422,1723024247106,-1014.81320553,0.0001269,2]
[334391423,1723024247115,-243.154171,0.0001269,2]
[334391424,1723024247124,-396.70976441,0.0001269,2]
[334391425,1723024247133,-205.85700732,0.0001269,2]
[334391426,1723024247182,-404.83132537,0.0001269,2]
[334391427,1723024247193,-203.33375775,0.0001269,2]
[334391428,1723024247202,-202.81555917,0.0001269,2]
[334391429,1723024247211,-202.0002911,0.0001269,2]
[334391430,1723024247220,-155.0,0.0001269,2]
[334391431,1723024247229,-155.0,0.0001269,2]
[334391432,1723024247238,-155.0,0.0001269,2]
[334391433,1723024247248,-317.54514863,0.0001269,2]
[334391434,1723024247256,-203.33375775,0.0001269,2]
[334391435,1723024247265,-196.70831166,0.0001269,2]
[334391436,1723024247275,-298.82987922,0.0001269,2]
[334391437,1723024247284,-365.60352756,0.0001269,2]
[334391438,1723024247293,-158.93675276,0.0001269,2]
[334391439,1723024247302,-155.0,0.0001269,2]
[334391440,1723024247312,-155.0,0.0001269,2]
[334391441,1723024247322,-1297.73941226,0.0001269,2]
[334391442,1723024247332,-155.0,0.0001269,2]
[334391443,1723024247343,-1206.09021612,0.00012696,2]
[334391444,1723024247353,-921.16736327,0.00012696,2]
[334391445,1723024247363,-915.07380576,0.00012696,2]
[334391446,1723024247373,-921.16736327,0.00012696,2]
[334391447,1723024247383,-155.0,0.00012696,2]
[334391448,1723024247394,-155.0,0.00012696,2]
[334391449,1723024247405,-155.0,0.00012696,2]
[334391450,1723024247416,-270.46597516,0.00012696,2]
[334391451,1723024247425,-367.71679801,0.00012696,2]
[334391452,1723024247435,-653.37427882,0.00012696,2]
[334391453,1723024247447,-155.3786545,0.00012696,2]
[334391454,1723024247456,-306.22353535,0.00012696,2]
[334391455,1723024247467,-203.10175605,0.00012696,2]
[334391456,1723024247476,-155.0,0.00012696,2]
[334391457,1723024247486,-155.0,0.00012696,2]
[334391458,1723024247495,-315.38641762,0.00012696,2]
[334391459,1723024247505,-155.0,0.00012696,2]
[334391460,1723024247514,-155.0,0.00012696,2]
[334391461,1723024247523,-155.0,0.00012696,2]
[334391462,1723024247533,-255.09228319,0.00012696,2]
[334391463,1723024247542,-155.0,0.00012696,2]
[334391464,1723024247551,-229.92502985,0.00012696,2]
[334391465,1723024247560,-203.10175605,0.00012696,2]
[334391466,1723024247571,-155.0,0.00012696,2]
[334391467,1723024247580,-367.71679801,0.00012696,2]
[334391468,1723024247590,-236.24535301,0.00012696,2]
[334391469,1723024247599,-419.0234197,0.00012696,2]
[334391470,1723024247608,-454.39810402,0.00012696,2]
[334391471,1723024247618,-155.0,0.00012696,2]
[334391472,1723024247628,-225.58411866,0.00012696,2]
[334391473,1723024247637,-155.0,0.00012696,2]
[334391474,1723024247647,-155.0,0.00012696,2]
[334391475,1723024247656,-200.0,0.00012716,2]
[334391476,1723024247666,-227.78,0.00012739,2]
[334391477,1723024247675,-729.71231313,0.00012749,2]
[334391478,1723024247685,-155.0,0.00012749,2]
[334391479,1723024247699,-594.81380735,0.00012749,2]
[334391480,1723024247708,-729.71231313,0.00012749,2]
[334391481,1723024247718,-155.0,0.00012749,2]
[334391482,1723024247727,-155.0,0.00012749,2]
[334391483,1723024247738,-155.0,0.00012749,2]
[334391484,1723024247747,-155.0,0.00012749,2]
[334391485,1723024247756,-158.19640417,0.00012749,2]
[334391486,1723024247766,-155.0,0.00012749,2]
[334391487,1723024247775,-155.0,0.00012749,2]
[334391488,1723024247785,-155.0,0.00012749,2]
[334391489,1723024247794,-155.0,0.00012749,2]
[334391490,1723024247804,-200.0,0.000128,4]
[334391491,1723024247813,-359.26552808,0.00012818,2]
[334391492,1723024247823,-155.0,0.00012818,2]
[334391493,1723024247833,-155.0,0.00012818,2]
[334391494,1723024247843,-155.0,0.00012818,2]
[334391495,1723024247854,-155.0,0.00012818,2]
[334391496,1723024247863,-155.0,0.00012818,2]
[334391497,1723024247872,-155.0,0.00012818,2]
[334391498,1723024247882,-155.0,0.00012818,2]
[334391499,1723024247891,-378.22076592,0.00012818,2]
[334391500,1723024247901,-155.0,0.00012818,2]
[334391501,1723024247910,-155.0,0.00012818,2]
[334391502,1723024247920,-737.40257968,0.00012826,2]
[334391503,1723024247930,-155.30623111,0.00012826,2]
[334391504,1723024247939,-155.0,0.00012855,2]
[334391505,1723024247952,-309.16579736,0.00012855,2]
[334391506,1723024247962,-649.5964416,0.00012855,2]
[334391507,1723024247971,-364.03356845,0.00012883,2]
[334391508,1723024247980,-157.48,0.00012893,2]
[334391509,1723024247990,-500.0,0.000129,4]
[334391510,1723024248000,-300.0,0.00013,2]
[334391511,1723024248010,-155.0,0.00013,2]
[334391512,1723024248019,-155.315,0.00013,2]
[334391513,1723024248029,-571.5594,0.0001321,2]
[334391514,1723024248038,-400.0,0.00013231,2]
[334391515,1723024248048,-713.88967935,0.00013332,2]
[334391516,1723024248059,-1219.35306969,0.00013332,2]
[334391517,1723024248068,-500.0,0.00013699,2]
[334391518,1723024248078,-327.47,0.00013699,2]
[334391519,1723024248087,-200.0,0.00013699,2]
[334391520,1723024248097,-2751.0,0.00013699,2]
[334391521,1723024248106,-1000.0,0.00013796,2]
[334391522,1723024248115,-547.785,0.00013799,2]
[334391523,1723024248125,-771.0,0.00013867,2]
[334391524,1723024248134,-2000.0,0.000139,2]
[334391525,1723024248143,-800.0,0.000139,5]
[334391526,1723024248152,-39468.02229651,0.000139,3]
[334391527,1723024248165,-567997.06407949,0.000139,3]
[334391528,1723024248174,-5382.90886267,0.00013934,2]
[334391529,1723024248184,-154.35,0.00013973,2]
[334391530,1723024248194,-200.0,0.00013988,2]
[334391531,1723024248204,-1650.0,0.00014,2]
[334391532,1723024248214,-400.0,0.00014701,2]
[334391533,1723024248223,-2000.0,0.000149,2]
[334391534,1723024248232,-171.96911502,0.00014999,2]
[334391535,1723024248241,-227.78,0.00015,2]
[334391536,1723024248251,-1197.90661519,0.00015,2]
[334391537,1723024248261,-13666.12264738,0.00015,7]
[334391538,1723024248270,-1474.0,0.00015,2]
[334391539,1723024248279,-155.0,0.00015,2]
[334391540,1723024248288,-494.0,0.00015,2]
[334391541,1723024248298,-300.0,0.00015068,2]
[334391542,1723024248308,-200.0,0.00015259,2]
[334391543,1723024248317,-555.0,0.00015334,2]
[334391544,1723024248327,-446.0,0.00015334,2]
[334391545,1723024248339,-1344.0,0.00015334,2]
[334391546,1723024248349,-150.0,0.00015334,2]
[334391547,1723024248358,-810.0,0.00015334,2]
[334391548,1723024248367,-247.0,0.00015334,2]
[334391549,1723024248378,-1671.0,0.00015334,2]
[334391550,1723024248387,-5382.90886267,0.00015357,2]
[334391551,1723024248396,-155.0,0.00015369,2]
[334391552,1723024248407,-167.0,0.00015831,2]
[334391553,1723024248417,-2000.0,0.000159,2]
[334391554,1723024248427,-155.0,0.00016,2]
[334391555,1723024248436,-1700.0,0.00016,2]
[334391556,1723024248449,-5809.1,0.00016116,2]
[334391557,1723024248458,-2828.98,0.00016116,2]
[334391558,1723024248468,-400.0,0.00016172,2]
[334391559,1723024248477,-167.0,0.00016354,2]
[334391560,1723024248485,-1200.0,0.00016438,2]
[334391561,1723024248496,-500.0,0.00016438,2]
[334391562,1723024248506,-1000.0,0.00016438,2]
[334391563,1723024248514,-2000.0,0.00016438,2]
[334391564,1723024248524,-300.0,0.00016438,2]
[334391565,1723024248534,-3384.79154798,0.000165,2]
[334391566,1723024248544,-2000.0,0.00016712,2]
[334391567,1723024248553,-186.47,0.00016712,2]
[334391568,1723024248562,-5382.90886267,0.00016781,2]
[334391569,1723024248571,-27.95173009,0.00016876,2]
[334391570,1723024248583,-139.04826991,0.00016876,2]
[334391571,1723024248593,-2000.0,0.000169,2]
[334391572,1723024248602,-2000.0,0.00016986,2]
[334391573,1723024248611,-3847.04047799,0.00016986,2]
[334391574,1723024248622,-10391.97917367,0.00016986,2]
[334391575,1723024248633,-204.45034834,0.00016986,2]
[334391576,1723024248643,-227.78,0.0001726,2]
[334391577,1723024248652,-5.98751266,0.0001726,2]
[334391578,1723024248664,-854.0,0.0001726,2]
[334391579,1723024248675,-340.01248734,0.0001726,2]
[334391580,1723024248684,-500.0,0.0001726,2]
[334391581,1723024248696,-1000.0,0.0001726,2]
[334391582,1723024248705,-618.00218157,0.0001726,2]
[334391583,1723024248717,-873.74712415,0.0001726,2]
[334391584,1723024248728,-508.25069428,0.0001726,2]
[334391585,1723024248737,-167.0,0.00017399,2]
[334391586,1723024248746,-2000.0,0.00017534,2]
[334391587,1723024248756,-327.47,0.00017534,2]
[334391588,1723024248766,-400.0,0.00017642,2]
[334391589,1723024248775,-625.34621924,0.00017808,2]
[334391590,1723024248786,-574.65378076,0.00017808,2]
[334391591,1723024248796,-43.73657974,0.00017808,2]
[334391592,1723024248807,-456.26342026,0.00017808,2]
[334391593,1723024248816,-783.62038031,0.00017808,2]
[334391594,1723024248831,-216.37961969,0.00017808,2]
[334391595,1723024248841,-183.62038031,0.00017808,2]
[334391596,1723024248851,-1816.37961969,0.00017808,2]
[334391597,1723024248860,-146.90500634,0.00017898,2]
[334391598,1723024503100,25000.0,0.00024658,30]
[334391599,1723024896206,358.0,0.00024658,30]
[334391600,1723024972796,196.4,8.219e-05,2]
[334391601,1723024991150,25000.0,0.00024658,30]
[334391602,1723025001449,4157.81575449,8.219e-05,2]
[334391617,1723025431612,-25312.48255048,0.0001,2]
[334391619,1723025431623,-3978.09066242,0.0001,2]
[334391620,1723025431632,-802.30355537,0.00010141,2]
[334391622,1723025431642,-1000.0,0.0001024,2]
[334391624,1723025431651,-197.97,0.0001024,2]
[334391625,1723025431660,-250.0,0.00010252,2]
[334391627,1723025431669,-23880.0,0.00010264,2]
[334391628,1723025431679,-200.0,0.00010272,2]
[334391629,1723025431689,-1852.42,0.00010284,2]
[334391630,1723025431698,-258.62,0.00010302,2]
[334391631,1723025431708,-446.11,0.00010353,2]
[334391632,1723025431719,-196.4,0.00010434,2]
[334391633,1723025431732,-500.0,0.00010683,2]
[334391634,1723025431743,-500.0,0.00010691,2]
[334391635,1723025431753,-500.0,0.000107,2]
[334391636,1723025431763,-500.0,0.00010709,2]
[334391637,1723025431774,-500.0,0.00010718,2]
[334391638,1723025431784,-500.0,0.00010727,2]
[334391639,1723025431794,-500.0,0.00010735,2]
[334391640,1723025431805,-271.55,0.00010735,2]
[334391641,1723025431818,-150.99,0.00010735,2]
[334391642,1723025431828,-500.0,0.00010744,2]
[334391643,1723025431843,-500.0,0.00010753,2]
[334391644,1723025431853,-500.0,0.00010762,2]
[334391645,1723025431862,-500.0,0.00010771,2]
[334391646,1723025431871,-500.0,0.00010779,2]
[334391647,1723025431880,-500.0,0.00010788,2]
[334391648,1723025431889,-500.0,0.00010797,2]
[334391649,1723025431898,-500.0,0.00010806,2]
[334391650,1723025431908,-500.0,0.00010815,2]
[334391651,1723025431917,-500.0,0.00010823,2]
[334391652,1723025431926,-500.0,0.00010832,2]
[334391653,1723025431936,-693.55102752,0.00010832,2]
[334391654,1723025431948,-761.85897248,0.00010832,2]
[334391655,1723025431958,-150.0,0.0001084,2]
[334391656,1723025431967,-500.0,0.00010841,2]
[334391657,1723025431977,-264.26555267,0.00010841,2]
[334391658,1723025431989,-315.92444733,0.00010841,2]
[334391659,1723025431999,-10.87605605,0.00010841,2]
[334391660,1723025432009,-458.53394395,0.00010841,2]
[334391662,1723025432019,-130.21283974,0.00010841,2]
[334391664,1723025432029,-2009.17611856,0.00010841,2]
[334391667,1723025432041,-2157.70172192,0.00010841,2]
[334391668,1723025432060,-1278.97931978,0.00010841,2]
[334391669,1723025432072,-500.0,0.0001085,2]
[334391670,1723025432081,-253.8796847,0.0001085,2]
[334391671,1723025432093,-7358.2703153,0.0001085,2]
[334391672,1723025432102,-499.99,0.0001085,2]
[334391673,1723025432112,-500.0,0.00010859,2]
[334391674,1723025432121,-500.0,0.00010867,2]
[334391675,1723025432131,-500.0,0.00010876,2]
[334391676,1723025432140,-375.68,0.00010884,2]
[334391677,1723025432150,-500.0,0.00010885,2]
[334391678,1723025432159,-599.0,0.00010885,2]
[334391679,1723025432168,-500.0,0.00010894,2]
[334391680,1723025432178,-2000.0,0.00010959,2]
[334391681,1723025432187,-150.0,0.00010959,2]
[334391682,1723025432197,-250.0,0.00010959,2]
[334391683,1723025432206,-499.95,0.00010959,2]
[334391684,1723025432216,-250.0,0.00011,2]
[334391685,1723025432225,-502.2793,0.00011086,2]
[334391686,1723025432235,-4865.1184,0.00011086,2]
[334391687,1723025432244,-156.16715443,0.00011105,2]
[334391688,1723025432253,-264.38460309,0.00011105,2]
[334391689,1723025432263,-3031.1823392,0.00011105,2]
[334391690,1723025432272,-215.15774546,0.00011105,2]
[334391691,1723025432282,-6122.78373808,0.00011105,2]
[334391696,1723025437639,-500.0,0.00010674,2]
[334391697,1723025437649,-9354.00322367,0.00011105,2]
[334391698,1723025437659,-3119.70333999,0.00011105,2]
[334391699,1723025437669,-7527.30139689,0.00011105,2]
[334391700,1723025437681,-1886.88,0.00011105,2]
[334391701,1723025437693,-1115.84488381,0.00011105,2]
[334391702,1723025437702,-4.8201402,0.00011105,2]
[334391703,1723025437714,-155.61073474,0.00011105,2]
[334391704,1723025437724,-419.17429726,0.00011105,2]
[334391705,1723025437737,-409.09978358,0.00011105,2]
[334391706,1723025437749,-577.23035915,0.00011105,2]
[334391707,1723025437758,-723.10580785,0.00011105,2]
[334391708,1723025437768,-532.06069874,0.00011105,2]
[334391709,1723025437778,-328.11060008,0.00011105,2]
[334391710,1723025437788,-291.72707994,0.00011105,2]
[334391711,1723025437799,-401.16988804,0.00011105,2]
[334391712,1723025437809,-1184.51400069,0.00011105,2]
[334391713,1723025437819,-1297.73941226,0.00011105,2]
[334391714,1723025437829,-206.68578726,0.00011105,2]
[334391715,1723025437838,-313.59536619,0.00011105,2]
[334391716,1723025437847,-205.85700732,0.00011105,2]
[334391717,1723025437857,-211.62746688,0.00011105,2]
[334391718,1723025437866,-380.18011514,0.00011105,2]
[334391719,1723025437876,-210.91712052,0.00011105,2]
[334391720,1723025437885,-155.81119803,0.00011105,2]
[334391721,1723025437894,-419.0234197,0.00011105,2]
[334391722,1723025437904,-155.3786545,0.00011161,2]
[334391723,1723025437913,-155.0,0.00011161,2]
[334391724,1723025437922,-155.0,0.00011161,2]
[334391725,1723025437932,-155.0,0.00011161,2]
[334391726,1723025437941,-155.0,0.00011161,2]
[334391727,1723025437951,-270.46597516,0.00011161,2]
[334391728,1723025437960,-159.54246192,0.00011186,2]
[334391730,1723025437969,-155.0,0.00011186,2]
[334391732,1723025437978,-155.0,0.00011186,2]
[334391734,1723025437988,-155.0,0.00011186,2]
[334391736,1723025437997,-159.54246192,0.00011186,2]
[334391738,1723025438006,-594.81380735,0.00011186,2]
[334391740,1723025438016,-164.33652674,0.00011206,2]
[334391742,1723025438025,-420.01247664,0.00011206,2]
[334391744,1723025438035,-155.0,0.00011206,2]
[334391746,1723025438044,-264.56088999,0.00011206,2]
[334391748,1723025438054,-653.37427882,0.00011322,2]
[334391750,1723025438063,-522.48038729,0.00011324,2]
[334391752,1723025438073,-488.76163618,0.00011324,2]
[334391775,1723025438274,-248.6409435,0.00011324,2]
[334391777,1723025438284,-737.40257968,0.00011324,2]
[334391779,1723025438293,-12.48029004,0.0001152,2]
[334391782,1723025438314,-987.51970996,0.0001152,2]
[334391784,1723025438323,-500.0,0.00011879,2]
[334391786,1723025438333,-4001.62491358,0.00012,2]
[334391788,1723025438343,-5000.0,0.00012,2]
[334391790,1723025438352,-1723.07577901,0.00012234,2]
[334391792,1723025438363,-343.26358931,0.00012234,2]
[334391794,1723025438374,-625.11506306,0.00012234,2]
[334391796,1723025438383,-375.68,0.00012245,2]
[334391798,1723025438393,-446.0,0.00012334,2]
[334391800,1723025438402,-150.0,0.00012334,2]
[334391802,1723025438411,-810.0,0.00012334,2]
[334391804,1723025438420,-1344.0,0.00012334,2]